bitfinex-derivatives/quotes_ETHF0:USTF0_20230830
["timestamp","ask_amount","ask_price","bid_price","bid_amount"]
[1693426459549,3.90925897,1704.8,1704.7,2.96817588]
[1693426463443,2.5463,1704.8,1704.7,5.90207222]
[1693426463648,7.913,1704.9,1704.7,8.19271424]
[1693426463949,7.913,1704.9,1704.7,5.2588179]
[1693426464146,7.913,1704.9,1704.8,2.26993648]
[1693426464352,7.92179894,1704.9,1704.8,2.26993648]
[1693426465850,0.00879894,1704.9,1704.8,3.8045306]
[1693426466149,0.00879894,1704.9,1704.8,9.0945306]
[1693426466755,0.00879894,1704.9,1704.8,12.02824314]
[1693426467154,0.00879894,1704.9,1704.8,14.67634314]
[1693426468849,7.7155,1705.2,1704.9,1.43358176]
[1693426469042,7.7155,1705.2,1705.0,7.55993648]
[1693426469043,2.4255,1705.2,1705.0,7.55993648]
[1693426469849,2.4255,1705.2,1705.1,1.43358176]
[1693426470854,3.09402217,1705.3,1705.1,1.43358176]
[1693426471058,5.50282217,1705.3,1705.1,1.43358176]
[1693426471946,10.79282217,1705.3,1705.1,1.43358176]
[1693426474057,12.15578114,1705.3,1705.1,1.43358176]
[1693426478357,5.50282217,1705.3,1705.2,2.26993648]
[1693426478557,2.87402217,1705.3,1705.2,2.26993648]
[1693426483858,4.23698114,1705.3,1705.2,2.26993648]
[1693426484560,2.87402217,1705.3,1705.2,2.26993648]
[1693426486056,4.23698114,1705.3,1705.1,7.8294]
[1693426486260,4.23698114,1705.3,1705.1,9.26298176]
[1693426486457,6.83538114,1705.3,1705.1,9.26298176]
[1693426486862,6.83538114,1705.3,1705.1,7.8294]
[1693426489763,7.73498529,1705.3,1705.1,7.8294]
[1693426490767,7.73498529,1705.3,1705.1,9.26298176]
[1693426497568,7.73498529,1705.3,1705.1,7.8294]
[1693426497871,7.73498529,1705.3,1705.1,5.29]
[1693426500468,7.73498529,1705.3,1705.0,2.453]
[1693426500469,5.29,1705.2,1705.0,2.453]
[1693426500771,5.29,1705.2,1704.8,8.06570716]
[1693426500772,2.26256312,1705.1,1704.8,12.24076062]
[1693426500974,7.35086312,1705.1,1704.8,9.94208043]
[1693426501868,12.64086312,1705.1,1704.8,9.94208043]
[1693426502468,12.64086312,1705.1,1704.8,14.5106971]
[1693426503473,12.64086312,1705.1,1704.9,1.53245346]
[1693426503674,12.64086312,1705.1,1704.8,14.5106971]
[1693426504077,12.64086312,1705.1,1704.8,12.21201691]
[1693426505675,12.64086312,1705.1,1704.8,14.5106971]
[1693426506175,12.64086312,1705.1,1704.8,12.21201691]
[1693426506678,5.07686561,1705.3,1705.0,5.29]
[1693426506874,4.61164344,1705.5,1705.2,10.58]
[1693426507076,9.25144344,1705.7,1705.4,5.29]
[1693426507379,8.08608063,1705.7,1705.5,2.26993648]
[1693426507574,0.84473719,1705.7,1705.5,2.26993648]
[1693426507775,9.90164344,1705.8,1705.5,2.26993648]
[1693426507776,5.45638063,1705.8,1705.6,6.72358176]
[1693426507975,4.61164344,1705.8,1705.7,2.26993648]
[1693426508679,5.97460241,1705.8,1705.7,2.26993648]
[1693426510581,6.44508023,1705.8,1705.7,2.26993648]
[1693426511880,5.08212126,1705.8,1705.7,2.26993648]
[1693426512082,5.92685845,1705.8,1705.7,2.26993648]
[1693426512686,7.28981742,1705.8,1705.7,2.26993648]
[1693426512877,5.92685845,1705.8,1705.7,2.26993648]
[1693426513081,7.28981742,1705.8,1705.7,2.26993648]
[1693426514683,5.92685845,1705.8,1705.7,2.26993648]
[1693426515677,7.28981742,1705.8,1705.7,2.26993648]
[1693426516091,7.28981742,1705.8,1705.6,6.72358176]
[1693426516283,4.60849085,1706.0,1705.7,24.82311668]
[1693426516585,4.60849085,1706.4,1705.7,14.24311668]
[1693426516783,5.29,1706.1,1705.5,1.53245346]
[1693426517086,5.29,1706.1,1705.7,12.86843742]
[1693426517279,5.29,1706.1,1705.8,2.26993648]
[1693426518282,6.18960415,1706.1,1705.8,2.26993648]
[1693426518982,6.18960415,1706.1,1705.8,7.55993648]
[1693426519581,1.43358176,1706.0,1705.8,7.55993648]
[1693426519783,1.43358176,1706.0,1705.8,5.29]
[1693426520481,44.32052227,1705.7,1705.6,1.53245346]
[1693426520681,44.32052227,1705.7,1705.6,6.82245346]
[1693426520880,43.44075756,1705.7,1705.6,6.82245346]
[1693426521188,43.44075756,1705.7,1705.6,9.09238994]
[1693426521485,44.87433932,1705.7,1705.6,9.09238994]
[1693426521791,43.44075756,1705.7,1705.6,9.09238994]
[1693426522187,44.87433932,1705.7,1705.6,6.82245346]
[1693426522588,44.87433932,1705.7,1705.6,6.81715471]
[1693426524394,43.44075756,1705.7,1705.6,6.81715471]
[1693426525282,43.44075756,1705.7,1705.6,9.74966092]
[1693426526283,44.87433932,1705.7,1705.6,9.74966092]
[1693426527094,43.44075756,1705.7,1705.6,9.74966092]
[1693426529199,44.87433932,1705.7,1705.6,9.74966092]
[1693426530505,43.44075756,1705.7,1705.6,9.74966092]
[1693426530905,44.87433932,1705.7,1705.6,9.74966092]
[1693426531704,44.87433932,1705.7,1705.6,12.04039299]
[1693426532609,44.87433932,1705.7,1705.6,9.74966092]
[1693426532802,44.87433932,1705.7,1705.6,12.04039299]
[1693426533000,43.44075756,1705.7,1705.6,12.04039299]
[1693426534307,43.44075756,1705.7,1705.6,9.74966092]
[1693426537814,43.44075756,1705.7,1705.6,12.04039299]
[1693426538016,47.42023932,1705.7,1705.6,12.04039299]
[1693426539016,48.31984347,1705.7,1705.6,12.04039299]
[1693426540819,48.31984347,1705.7,1705.6,10.51323828]
[1693426544422,48.31984347,1705.7,1705.6,5.29]
[1693426544626,48.31984347,1705.7,1705.6,10.51176603]
[1693426550524,48.31984347,1705.7,1705.6,6.81795204]
[1693426550826,48.31984347,1705.7,1705.6,9.75076977]
[1693426551721,48.31984347,1705.7,1705.6,12.03995237]
[1693426552521,48.31984347,1705.7,1705.6,9.75076977]
[1693426552828,48.31984347,1705.7,1705.6,10.51200033]
[1693426554625,48.31984347,1705.7,1705.6,12.04234808]
[1693426556320,48.31984347,1705.7,1705.6,10.51200033]
[1693426556629,48.31984347,1705.7,1705.6,12.04264806]
[1693426556830,48.31984347,1705.7,1705.6,10.51200033]
[1693426557531,48.31984347,1705.7,1705.6,12.04278473]
[1693426558527,48.31984347,1705.7,1705.6,9.75360213]
[1693426558727,48.31984347,1705.7,1705.6,12.04278473]
[1693426559629,48.31984347,1705.7,1705.6,9.75360213]
[1693426560736,48.31984347,1705.7,1705.6,12.04278473]
[1693426561834,48.31984347,1705.7,1705.6,9.75360213]
[1693426562336,48.31984347,1705.7,1705.6,6.8207844]
[1693426563743,48.31984347,1705.7,1705.6,5.29]
[1693426567245,48.31984347,1705.7,1705.5,5.29]
[1693426567450,2.4311,1705.6,1705.5,5.29]
[1693426568448,2.4311,1705.6,1705.4,5.29]
[1693426568648,4.92918591,1705.5,1705.4,5.29]
[1693426568851,4.92918591,1705.5,1705.2,5.29]
[1693426569051,2.4889,1705.4,1705.2,5.29]
[1693426569355,2.33318591,1705.3,1705.2,5.29]
[1693426569652,4.92918591,1705.3,1705.2,5.29]
[1693426578262,33.84540161,1705.0,1704.9,3.06386034]
[1693426578568,36.17858752,1705.0,1704.9,22.55093417]
[1693426578865,36.17858752,1705.0,1704.9,19.48707383]
[1693426579664,36.17858752,1705.0,1704.9,19.95645823]
[1693426580561,36.17858752,1705.0,1704.9,17.02317822]
[1693426580763,38.78898752,1705.0,1704.9,19.95672761]
[1693426580961,38.78898752,1705.0,1704.9,17.02317822]
[1693426581163,38.78898752,1705.0,1704.9,19.95672776]
[1693426581459,38.78898752,1705.0,1704.9,17.02317822]
[1693426581659,38.78898752,1705.0,1704.9,19.95673866]
[1693426582764,38.78898752,1705.0,1704.9,17.02317822]
[1693426583168,38.78898752,1705.0,1704.9,5.7593844]
[1693426586563,38.78898752,1705.0,1704.9,8.69308007]
[1693426586765,37.90887891,1705.0,1704.9,8.69308007]
[1693426589466,36.47529715,1705.0,1704.9,8.69308007]
[1693426589770,37.90887891,1705.0,1704.9,19.95805462]
[1693426590473,37.00927476,1705.0,1704.9,19.95805462]
[1693426593665,35.575693,1705.0,1704.9,19.95805462]
[1693426593869,32.965293,1705.0,1704.9,23.02191496]
[1693426597066,34.39887476,1705.0,1704.9,23.02191496]
[1693426599269,32.965293,1705.0,1704.9,23.02191496]
[1693426600577,32.965293,1705.0,1704.9,19.95805462]
[1693426602876,34.39887476,1705.0,1704.9,19.95805462]
[1693426603779,32.965293,1705.0,1704.9,19.95805462]
[1693426604481,34.39887476,1705.0,1704.9,19.95805462]
[1693426605679,32.965293,1705.0,1704.9,19.95805462]
[1693426606077,35.621793,1705.0,1704.9,19.95805462]
[1693426606278,37.05537476,1705.0,1704.9,19.95805462]
[1693426610281,37.05537476,1705.0,1704.9,14.19867022]
[1693426610477,37.05537476,1705.0,1704.8,5.29]
[1693426610678,2.6292,1704.9,1704.8,5.29]
[1693426610985,3.52880415,1704.9,1704.8,19.49007431]
[1693426619086,2.6292,1704.9,1704.8,19.49007431]
[1693426623993,7.9192,1704.9,1704.8,11.26617442]
[1693426629697,7.9192,1704.9,1704.5,8.35386034]
[1693426629903,8.84070415,1704.8,1704.6,14.20089467]
[1693426630099,10.27428591,1704.8,1704.7,11.2668257]
[1693426630797,10.27428591,1704.8,1704.6,11.2668257]
[1693426630990,10.27428591,1704.8,1704.7,11.2668257]
[1693426631499,10.27428591,1704.8,1704.6,11.2668257]
[1693426631706,10.27428591,1704.8,1704.7,11.2668257]
[1693426632002,4.98428591,1704.8,1704.7,11.2668257]
[1693426638100,2.6511,1704.8,1704.7,11.2668257]
[1693426638606,4.08468176,1704.8,1704.7,11.2668257]
[1693426639108,9.37468176,1704.8,1704.5,2.29969385]
[1693426639304,5.29,1704.6,1704.4,2.29969385]
[1693426639501,0.89960415,1704.5,1704.3,5.23415499]
[1693426639799,3.43340415,1704.5,1704.4,11.268419]
[1693426640097,4.86698591,1704.5,1704.4,11.268419]
[1693426641200,4.86698591,1704.5,1704.3,2.29969385]
[1693426641406,4.86698591,1704.5,1704.3,2.93458232]
[1693426641904,10.15698591,1704.5,1704.3,2.93458232]
[1693426642103,10.15698591,1704.5,1704.2,2.29969385]
[1693426642304,10.15698591,1704.5,1704.3,11.26880729]
[1693426643205,2.59,1704.4,1704.3,11.26880729]
[1693426643406,2.59,1704.4,1704.3,16.503078]
[1693426646811,1.70963182,1704.4,1704.3,16.503078]
[1693426652816,1.70963182,1704.4,1704.3,14.20338415]
[1693426653815,1.70963182,1704.4,1704.3,17.26970282]
[1693426654213,1.70963182,1704.4,1704.3,16.50147591]
[1693426656412,6.99963182,1704.4,1704.3,16.50147591]
[1693426658920,5.29,1704.4,1704.3,16.50147591]
[1693426659219,7.7603,1704.4,1704.3,16.50147591]
[1693426664328,16.46381709,1704.3,1704.2,3.53257287]
[1693426664528,18.797003,1704.3,1704.2,14.80144361]
[1693426665030,17.89739885,1704.3,1704.2,14.80144361]
[1693426665430,17.89739885,1704.3,1704.2,3.53257287]
[1693426669135,16.46381709,1704.3,1704.2,8.82257287]
[1693426672933,17.89739885,1704.3,1704.2,8.82257287]
[1693426674433,16.46381709,1704.3,1704.2,8.82257287]
[1693426675035,17.89739885,1704.3,1704.2,8.82257287]
[1693426678129,17.89739885,1704.3,1704.2,5.7562542]
[1693426680135,16.46381709,1704.3,1704.2,5.7562542]
[1693426680434,17.89739885,1704.3,1704.2,8.82522128]
[1693426680834,17.89739885,1704.3,1704.2,5.7562542]
[1693426681235,16.46381709,1704.3,1704.2,5.7562542]
[1693426681541,16.46381709,1704.3,1704.2,9.58915254]
[1693426681736,16.46381709,1704.3,1704.2,5.7562542]
[1693426681935,16.46381709,1704.3,1704.2,9.58915254]
[1693426682539,16.46381709,1704.3,1704.2,5.7562542]
[1693426682740,16.46381709,1704.3,1704.2,9.58915254]
[1693426683242,17.89739885,1704.3,1704.2,9.58915254]
[1693426684331,17.89739885,1704.3,1704.2,12.52363009]
[1693426685936,16.46381709,1704.3,1704.2,12.52363009]
[1693426686343,18.87851709,1704.3,1704.2,12.52363009]
[1693426686639,20.31209885,1704.3,1704.2,12.52363009]
[1693426687534,18.87851709,1704.3,1704.2,12.52363009]
[1693426688644,20.31209885,1704.3,1704.2,12.52363009]
[1693426689645,16.46381709,1704.3,1704.2,12.52363009]
[1693426689846,16.46381709,1704.3,1704.2,13.98073175]
[1693426691843,15.87701709,1704.3,1704.2,13.98073175]
[1693426696445,15.87701709,1704.3,1704.2,17.82148527]
[1693426706862,14.99671352,1704.3,1704.2,17.82148527]
[1693426711970,14.99671352,1704.3,1704.2,12.53148527]
[1693426714675,14.99671352,1704.3,1704.2,11.76466931]
[1693426719871,16.43029528,1704.3,1704.2,11.76466931]
[1693426720773,14.99671352,1704.3,1704.2,11.76466931]
[1693426721472,14.99671352,1704.3,1704.2,8.69073175]
[1693426721673,14.99671352,1704.3,1704.2,12.53148527]
[1693426722082,16.43029528,1704.3,1704.2,12.53148527]
[1693426722576,21.62099528,1704.3,1704.2,12.53148527]
[1693426722879,20.18741352,1704.3,1704.2,12.53148527]
[1693426724378,21.62099528,1704.3,1704.2,12.53148527]
[1693426724679,20.18741352,1704.3,1704.2,12.53148527]
[1693426727983,21.62099528,1704.3,1704.2,12.53148527]
[1693426728683,20.18741352,1704.3,1704.2,12.53148527]
[1693426729484,20.18741352,1704.3,1704.2,8.69073175]
[1693426729884,21.62099528,1704.3,1704.2,8.69073175]
[1693426731487,20.18741352,1704.3,1704.2,8.69073175]
[1693426744090,21.62099528,1704.3,1704.2,8.69073175]
[1693426748593,20.18741352,1704.3,1704.2,8.69073175]
[1693426750092,21.62099528,1704.3,1704.2,8.69073175]
[1693426752195,20.18741352,1704.3,1704.2,8.69073175]
[1693426753895,21.62099528,1704.3,1704.2,8.69073175]
[1693426754097,20.18741352,1704.3,1704.2,8.69073175]
[1693426755494,21.62099528,1704.3,1704.2,8.69073175]
[1693426756394,20.18741352,1704.3,1704.2,8.69073175]
[1693426759698,21.62099528,1704.3,1704.2,8.69073175]
[1693426759894,20.18741352,1704.3,1704.2,8.69073175]
[1693426760899,21.62099528,1704.3,1704.2,8.69073175]
[1693426764699,20.18741352,1704.3,1704.2,8.69073175]
[1693426766705,20.18741352,1704.3,1704.2,12.5388511]
[1693426766907,19.3070956,1704.3,1704.2,12.5388511]
[1693426768205,19.3070956,1704.3,1704.2,20.08919563]
[1693426768607,19.3070956,1704.3,1704.2,16.24107628]
[1693426772823,16.6619956,1704.3,1704.2,16.24107628]
[1693426773025,5.38063839,1705.0,1704.2,42.57347766]
[1693426773026,2.6355,1704.6,1704.2,42.57347766]
[1693426773220,2.6355,1704.6,1704.5,9.13656812]
[1693426773414,2.0487,1704.6,1704.5,12.42654152]
[1693426773714,1.4621,1704.6,1704.5,26.60982494]
[1693426773914,1.4621,1704.6,1704.5,28.68044698]
[1693426774224,0.8755,1704.6,1704.5,28.68044698]
[1693426774420,2.6375,1704.9,1704.5,28.68044698]
[1693426774622,2.6375,1704.9,1704.8,1.53725418]
[1693426774820,2.6375,1704.9,1704.8,3.60787622]
[1693426774821,2.0509,1704.9,1704.8,3.60787622]
[1693426777328,2.0509,1704.9,1704.8,2.07062204]
[1693426777831,4.4715,1704.9,1704.8,2.07062204]
[1693426779529,5.90508176,1704.9,1704.8,2.07062204]
[1693426781822,4.4715,1704.9,1704.8,7.36062204]
[1693426782129,4.4715,1704.9,1704.8,8.89787622]
[1693426782334,4.4715,1704.9,1704.8,8.89566681]
[1693426782630,4.4715,1704.9,1704.8,7.36062204]
[1693426789029,4.4715,1704.9,1704.8,7.83538485]
[1693426804141,2.0509,1704.9,1704.8,7.83538485]
[1693426804538,2.0509,1704.9,1704.8,19.81054508]
[1693426804741,2.4315,1705.2,1704.8,21.34424836]
[1693426804940,2.4478,1705.1,1704.9,1.53370328]
[1693426805142,2.4478,1705.1,1705.0,7.36062204]
[1693426806340,2.4478,1705.1,1705.0,8.89432532]
[1693426807338,2.4478,1705.1,1705.0,11.82774111]
[1693426809449,0.46096078,1705.5,1705.0,21.60961572]
[1693426809743,2.567,1705.4,1705.1,1.53313945]
[1693426810048,2.567,1705.4,1705.3,5.29]
[1693426822649,2.567,1705.4,1705.3,5.75903136]
[1693426831865,2.567,1705.4,1705.3,5.76543768]
[1693426832863,2.567,1705.4,1705.3,5.75903136]
[1693426833865,2.567,1705.4,1705.3,5.76543768]
[1693426834867,2.567,1705.4,1705.3,5.75903136]
[1693426835969,2.567,1705.4,1705.3,5.76543768]
[1693426838075,4.00058176,1705.4,1705.3,5.76543768]
[1693426842468,2.567,1705.4,1705.3,5.76543768]
[1693426845780,4.00058176,1705.4,1705.3,5.76543768]
[1693426846579,4.00058176,1705.4,1705.3,0.47543768]
[1693426846873,4.00058176,1705.4,1705.1,5.29]
[1693426847075,2.26993648,1705.3,1705.1,5.29]
[1693426847278,1.43358176,1705.2,1705.1,5.29]
[1693426847473,3.90098176,1705.2,1705.1,5.29]
[1693426849880,6.52098176,1705.2,1705.1,5.29]
[1693426851881,5.0874,1705.2,1705.1,5.29]
[1693426852287,6.52098176,1705.2,1705.1,5.29]
[1693426854683,2.4674,1705.2,1705.1,6.82313945]
[1693426854989,2.6072,1705.4,1705.2,5.29]
[1693426855187,5.0655,1705.4,1705.3,5.29]
[1693426855488,6.49908176,1705.4,1705.3,5.29]
[1693426861902,6.49908176,1705.4,1705.2,5.29]
[1693426862087,2.26993648,1705.3,1705.2,5.29]
[1693426867696,11.95554511,1705.4,1705.2,5.29]
[1693426867697,7.34387721,1705.4,1705.2,5.29]
[1693426867893,6.49908176,1705.4,1705.3,5.29]
[1693426876498,5.0655,1705.4,1705.3,5.29]
[1693426877102,6.49908176,1705.4,1705.3,5.29]
[1693426877601,11.11074966,1705.4,1705.3,5.29]
[1693426879609,6.49908176,1705.4,1705.3,5.29]
[1693426883801,5.0655,1705.4,1705.3,5.29]
[1693426886415,6.49908176,1705.4,1705.3,5.29]
[1693426887508,11.11074966,1705.4,1705.3,5.29]
[1693426887703,11.95554511,1705.4,1705.3,5.29]
[1693426918036,11.95559423,1705.4,1705.3,5.29]
[1693426918843,5.45651247,1705.4,1705.3,7.36062204]
[1693426919044,5.45651247,1705.5,1705.3,7.36062204]
[1693426919231,4.6116679,1705.5,1705.4,5.29]
[1693426919636,8.07731247,1705.6,1705.4,5.29]
[1693426919834,8.07731247,1705.6,1705.5,7.36062204]
[1693426920040,8.54300287,1705.6,1705.5,5.29]
[1693426920241,8.07731247,1705.6,1705.5,5.29]
[1693426920440,8.07731247,1705.6,1705.5,7.36062204]
[1693426921338,5.45651247,1705.6,1705.5,7.36062204]
[1693426921635,4.6116679,1705.6,1705.5,7.36062204]
[1693426923734,4.6116679,1705.7,1705.5,7.36062204]
[1693426923937,5.08655438,1705.7,1705.6,5.29]
[1693426924543,5.8551657,1705.7,1705.6,5.29]
[1693426924744,6.70001027,1705.7,1705.6,5.29]
[1693426926437,5.8551657,1705.7,1705.6,5.29]
[1693426926838,0.47488648,1705.7,1705.6,5.29]
[1693426927144,8.62852379,1705.8,1705.6,5.29]
[1693426927346,4.6142563,1705.7,1705.6,5.29]
[1693426931046,8.33111265,1705.8,1705.6,5.29]
[1693426931343,9.76469441,1705.8,1705.7,5.29]
[1693426933241,8.33111265,1705.8,1705.7,5.29]
[1693426934358,7.46434965,1705.8,1705.7,7.36062204]
[1693426934550,7.46434965,1705.8,1705.7,5.29]
[1693426934745,8.89793141,1705.8,1705.7,5.29]
[1693426936751,4.28367511,1705.8,1705.7,5.29]
[1693426936947,8.05308684,1705.8,1705.7,5.29]
[1693426937149,8.89793141,1705.8,1705.7,5.29]
[1693426937750,4.28367511,1705.8,1705.7,5.29]
[1693426939049,3.43883054,1705.8,1705.7,5.29]
[1693426939754,8.05308684,1705.8,1705.7,5.29]
[1693426939953,8.89793141,1705.8,1705.7,5.29]
[1693426940555,8.05308684,1705.8,1705.7,5.29]
[1693426943655,3.43883054,1705.8,1705.7,5.29]
[1693426943859,2.00524878,1705.8,1705.7,5.29]
[1693426944559,3.43883054,1705.8,1705.7,5.29]
[1693426947659,8.04739028,1705.8,1705.7,5.29]
[1693426947858,3.43883054,1705.8,1705.7,5.29]
[1693426951863,3.43883054,1705.8,1705.6,7.7964]
[1693426958564,2.00524878,1705.8,1705.6,7.7964]
[1693426958869,6.61515061,1705.8,1705.6,7.7964]
[1693426959166,3.43883054,1705.8,1705.6,7.7964]
[1693426959364,8.04873237,1705.8,1705.6,7.7964]
[1693426960875,8.89342298,1705.8,1705.6,7.7964]
[1693426961962,8.89341004,1705.8,1705.7,5.29]
[1693426962171,7.45982828,1705.8,1705.7,5.29]
[1693426962473,2.00524878,1705.8,1705.7,7.36062204]
[1693426963572,6.61515061,1705.8,1705.7,7.36062204]
[1693426963968,2.00524878,1705.8,1705.7,7.36062204]
[1693426971872,3.43883054,1705.8,1705.6,5.29]
[1693426972076,4.28348652,1705.8,1705.6,5.29]
[1693426972276,2.26993648,1705.7,1705.6,5.29]
[1693426973177,4.86853648,1705.7,1705.6,5.29]
[1693426980490,2.26993648,1705.7,1705.6,5.29]
[1693426980691,4.88663648,1705.7,1705.4,5.29]
[1693426980891,4.07198176,1705.6,1705.4,5.29]
[1693426981897,4.07198176,1705.6,1705.5,5.29]
[1693426989297,4.07198176,1705.6,1705.3,6.8261155]
[1693426989500,2.26993648,1705.5,1705.3,6.8261155]
[1693426989702,1.43358176,1705.4,1705.3,6.8261155]
[1693426990001,1.43358176,1705.4,1705.3,6.82639248]
[1693426990191,2.26993648,1705.5,1705.3,6.82639248]
[1693426990396,3.70351824,1705.5,1705.3,6.82639248]
[1693426994197,6.33661824,1705.5,1705.3,6.82639248]
[1693426996405,8.74851824,1705.5,1705.3,6.82639248]
[1693426996901,8.74851824,1705.5,1705.3,5.29]
[1693427001910,14.03851824,1705.5,1705.2,4.44534006]
[1693427003106,14.03851824,1705.5,1705.2,2.00064006]
[1693427004214,14.49950161,1705.5,1705.2,2.00064006]
[1693427007510,9.20950161,1705.5,1705.2,7.29064006]
[1693427008606,9.20950161,1705.5,1705.1,4.21002878]
[1693427008815,9.20950161,1705.5,1705.2,8.22310429]
[1693427009009,9.20950161,1705.5,1705.2,5.29]
[1693427013115,9.20950161,1705.5,1705.2,5.29879584]
[1693427020718,9.20950161,1705.5,1705.2,7.36941788]
[1693427022116,14.49950161,1705.5,1705.2,7.36941788]
[1693427023421,5.29,1705.4,1705.2,2.07941788]
[1693427025522,6.72358176,1705.4,1705.2,2.07941788]
[1693427030725,6.72358176,1705.4,1705.2,0.00879584]
[1693427031222,2.26993648,1705.3,1705.2,0.00879584]
[1693427031426,4.78453648,1705.3,1705.2,2.94198609]
[1693427032620,2.5146,1705.3,1705.2,2.94198609]
[1693427033527,7.8046,1705.3,1704.9,10.97005264]
[1693427033729,5.29,1705.2,1704.9,5.68005264]
[1693427034026,1.43358176,1705.1,1704.9,5.68005264]
[1693427034226,6.30421824,1705.1,1704.9,2.6061]
[1693427034434,12.6535319,1705.1,1704.9,2.6061]
[1693427035327,8.80591824,1705.1,1704.9,2.6061]
[1693427035832,8.80591824,1705.1,1704.9,3.0809436]
[1693427076163,12.65018036,1705.1,1704.9,3.0809436]
[1693427079273,12.65018036,1705.1,1704.9,5.38241544]
[1693427082773,3.84426212,1705.0,1704.9,3.0809436]
[1693427082968,3.84426212,1705.0,1704.9,6.01464228]
[1693427085778,3.84426212,1705.0,1704.9,8.31611412]
[1693427089079,3.84426212,1705.0,1704.9,6.01464228]
[1693427089581,3.84426212,1705.0,1704.9,8.31611412]
[1693427089879,12.65018036,1705.1,1704.9,8.31611412]
[1693427090079,12.65018036,1705.1,1704.9,5.38241544]
[1693427095875,3.84426212,1705.0,1704.9,5.38241544]
[1693427096077,3.84426212,1705.0,1704.9,8.31613061]
[1693427101577,6.44496212,1705.1,1704.9,14.37493976]
[1693427101781,3.84426212,1705.2,1705.0,7.31120407]
[1693427101984,3.84426212,1705.2,1705.0,4.3774889]
[1693427105889,5.27784388,1705.2,1705.0,2.07062204]
[1693427107691,3.84426212,1705.3,1705.1,7.59686686]
[1693427107886,3.84426212,1705.4,1705.2,2.07062204]
[1693427108689,3.84426212,1705.4,1705.3,5.29]
[1693427112697,3.84426212,1705.5,1705.3,5.29]
[1693427112899,5.27784388,1705.5,1705.3,5.29]
[1693427113101,2.5771,1705.4,1705.3,5.29]
[1693427124411,5.099,1705.4,1705.3,5.29]
[1693427135215,3.84945291,1705.5,1705.3,5.29]
[1693427135425,8.85685707,1705.7,1705.4,7.36062204]
[1693427135721,5.0162,1705.7,1705.6,5.29]
[1693427136829,5.0162,1705.7,1705.6,7.36062204]
[1693427137627,5.0162,1705.7,1705.6,4.98611404]
[1693427151437,5.0162,1705.7,1705.6,2.915492]
[1693427152037,6.44978176,1705.7,1705.6,2.915492]
[1693427153031,5.0162,1705.7,1705.6,2.915492]
[1693427156037,2.4388,1705.7,1705.6,2.915492]
[1693427159438,6.92211118,1705.9,1705.6,2.915492]
[1693427159640,2.6297,1705.8,1705.5,0.46345396]
[1693427159839,2.6297,1705.8,1705.7,5.29]
[1693427164142,2.603,1705.9,1705.7,10.58]
[1693427164343,2.6591,1706.0,1705.8,7.36062204]
[1693427164645,6.23959357,1706.2,1705.9,5.29]
[1693427164833,5.0591,1706.2,1706.1,5.29]
[1693427165040,8.89869357,1706.2,1706.1,5.29]
[1693427165243,6.49869357,1706.2,1706.1,5.29]
[1693427165636,2.6591,1706.2,1706.1,5.29]
[1693427172550,2.4,1706.3,1706.1,5.29]
[1693427172749,4.8432,1706.3,1706.2,7.36062204]
[1693427172943,2.4432,1706.3,1706.2,7.36062204]
[1693427177148,2.6082,1706.6,1706.2,12.65062204]
[1693427177355,2.6082,1706.6,1706.4,5.29]
[1693427177550,2.6082,1706.6,1706.4,7.36062204]
[1693427179449,3.06615888,1706.6,1706.4,7.36062204]
[1693427180454,2.6082,1706.6,1706.4,7.36062204]
[1693427181357,2.6082,1706.6,1706.5,5.29]
[1693427186158,4.04178176,1706.6,1706.5,5.29]
[1693427188357,2.6082,1706.6,1706.5,5.29]
[1693427189459,4.04178176,1706.6,1706.5,5.29]
[1693427190064,2.6082,1706.6,1706.5,5.29]
[1693427194472,4.04178176,1706.6,1706.5,5.29]
[1693427195570,2.6082,1706.6,1706.5,5.29]
[1693427203474,4.04178176,1706.6,1706.5,5.29]
[1693427204279,9.33178176,1706.6,1706.3,6.81737801]
[1693427204478,7.55993648,1706.5,1706.2,6.81737801]
[1693427204678,5.29,1706.3,1706.1,1.52737801]
[1693427204875,2.26993648,1706.2,1706.1,1.52737801]
[1693427205179,8.99351824,1706.2,1706.0,1.52737801]
[1693427205377,5.29,1706.1,1705.9,1.53045237]
[1693427205582,8.99351824,1706.0,1705.8,1.53045237]
[1693427205777,7.55993648,1706.0,1705.7,9.11151938]
[1693427206282,1.43358176,1705.9,1705.7,9.11151938]
[1693427206482,2.26993648,1705.8,1705.7,9.11151938]
[1693427206784,2.26993648,1705.8,1705.7,9.75298419]
[1693427208689,2.26993648,1705.8,1705.7,9.75302623]
[1693427208891,2.26993648,1705.8,1705.7,6.82045237]
[1693427209778,7.55993648,1705.8,1705.5,1.53045237]
[1693427209983,6.72358176,1705.7,1705.4,3.82151938]
[1693427210177,6.72358176,1705.7,1705.4,6.75451444]
[1693427210178,2.26993648,1705.6,1705.4,6.75451444]
[1693427210388,1.43358176,1705.5,1705.4,1.53045237]
[1693427210585,1.43358176,1705.5,1705.4,4.46344944]
[1693427210790,1.43358176,1705.5,1705.4,1.53045237]
[1693427211892,1.43358176,1705.5,1705.3,1.53045237]
[1693427212190,2.26993648,1705.4,1705.3,4.46352015]
[1693427212388,1.39001494,1705.4,1705.3,4.46352015]
[1693427212890,1.39001494,1705.4,1705.3,1.53045237]
[1693427215687,1.39001494,1705.4,1705.2,9.11151938]
[1693427216293,1.43358176,1705.3,1705.2,9.11151938]
[1693427216494,1.43358176,1705.3,1705.2,12.04461127]
[1693427216990,1.43358176,1705.3,1705.2,4.46354426]
[1693427217191,1.43358176,1705.3,1705.2,6.75461127]
[1693427217795,1.39001494,1705.4,1705.3,0.03296526]
[1693427218496,2.8235967,1705.4,1705.3,0.03296526]
[1693427221995,8.1135967,1705.4,1705.3,0.03296526]
[1693427223792,8.1135967,1705.4,1705.0,2.26993648]
[1693427223996,5.29,1705.3,1705.0,3.80038885]
[1693427224197,5.29,1705.3,1705.1,1.43358176]
[1693427225197,1.43358176,1705.2,1705.1,1.43358176]
[1693427227898,1.43358176,1705.2,1705.0,3.80038885]
[1693427228095,1.43358176,1705.2,1705.0,5.23397061]
[1693427228294,3.02291113,1705.2,1705.0,5.23397061]
[1693427228692,3.02291113,1705.2,1705.0,7.52503762]
[1693427230594,3.02291113,1705.2,1705.1,1.53045237]
[1693427231200,3.02291113,1705.2,1705.0,6.45911938]
[1693427231401,5.60851113,1705.2,1705.1,1.53045237]
[1693427231600,5.60851113,1705.2,1705.0,6.45911938]
[1693427231997,5.60851113,1705.2,1705.1,1.53045237]